[Event "*** SCC Grand Prix: Titled Tuesday Blitz"]
[Site "Chess.com"]
[Date "2020.07.07"]
[Round "9"]
[White "Godzillator"]
[Black "kidagent"]
[Result "1/2-1/2"]
[WhiteElo "2351"]
[BlackElo "2233"]
[TimeControl "180+1"]
[EndTime "11:47:34 PDT"]
[Termination "Game drawn by repetition"]

1. d4 {[%clk 0:03:00.9]} 1... d5 {[%clk 0:02:59.5]} 2. c4 {[%clk 0:03:01.1]}
2... c6 {[%clk 0:02:59.3]} 3. cxd5 {[%clk 0:03:01.1]} 3... cxd5 {[%clk 0:02:59]}
4. Bf4 {[%clk 0:03:01.2]} 4... Nc6 {[%clk 0:02:57.3]} 5. e3 {[%clk 0:03:01.2]}
5... Nf6 {[%clk 0:02:56.4]} 6. Nc3 {[%clk 0:03:01.4]} 6... a6 {[%clk 0:02:56]}
7. Bd3 {[%clk 0:03:00.8]} 7... e6 {[%clk 0:02:51.2]} 8. Rc1 {[%clk 0:02:59.9]}
8... Bd6 {[%clk 0:02:50.1]} 9. Bg3 {[%clk 0:02:59.2]} 9... O-O {[%clk
0:02:48.8]} 10. Nf3 {[%clk 0:02:59.1]} 10... Qe7 {[%clk 0:02:43.8]} 11. Bb1
{[%clk 0:02:58.2]} 11... Bd7 {[%clk 0:02:32.9]} 12. Bh4 {[%clk 0:02:57]} 12...
h6 {[%clk 0:02:30.8]} 13. a3 {[%clk 0:02:53.9]} 13... g6 {[%clk 0:01:58.1]} 14.
O-O {[%clk 0:02:41.7]} 14... Qd8 {[%clk 0:01:49.8]} 15. b4 {[%clk 0:02:40.3]}
15... Be7 {[%clk 0:01:48.8]} 16. Bg3 {[%clk 0:02:38.3]} 16... Nh5 {[%clk
0:01:44.3]} 17. Be5 {[%clk 0:02:35.9]} 17... Nxe5 {[%clk 0:01:39.5]} 18. Nxe5
{[%clk 0:02:36]} 18... Be8 {[%clk 0:01:37.2]} 19. Na4 {[%clk 0:02:32.9]} 19...
b6 {[%clk 0:01:27.3]} 20. Bd3 {[%clk 0:02:10.3]} 20... a5 {[%clk 0:01:18.7]} 21.
Nc6 {[%clk 0:02:03.4]} 21... Bxc6 {[%clk 0:01:12.3]} 22. Rxc6 {[%clk 0:02:03.2]}
22... axb4 {[%clk 0:01:12.1]} 23. Nxb6 {[%clk 0:02:03.1]} 23... Rxa3 {[%clk
0:01:10.3]} 24. Qb1 {[%clk 0:01:48.6]} 24... Ng7 {[%clk 0:01:04.2]} 25. Nc8
{[%clk 0:01:47]} 25... Rc3 {[%clk 0:00:56.4]} 26. Nxe7+ {[%clk 0:01:41.3]} 26...
Qxe7 {[%clk 0:00:57.3]} 27. Rb6 {[%clk 0:01:41.4]} 27... Rfc8 {[%clk 0:00:50.4]}
28. h3 {[%clk 0:01:38.6]} 28... Qc7 {[%clk 0:00:30.3]} 29. Rxb4 {[%clk
0:01:35.5]} 29... Rc1 {[%clk 0:00:29.6]} 30. Qb3 {[%clk 0:01:21.8]} 30... Rxf1+
{[%clk 0:00:22.5]} 31. Bxf1 {[%clk 0:01:21.4]} 31... Nf5 {[%clk 0:00:20.8]} 32.
Rb7 {[%clk 0:01:21.3]} 32... Qc2 {[%clk 0:00:19]} 33. Qxc2 {[%clk 0:01:19.1]}
33... Rxc2 {[%clk 0:00:18.2]} 34. g3 {[%clk 0:01:17.2]} 34... Nd6 {[%clk
0:00:17]} 35. Rb8+ {[%clk 0:01:15.7]} 35... Kg7 {[%clk 0:00:16.5]} 36. Bd3
{[%clk 0:01:14.6]} 36... Rd2 {[%clk 0:00:15.5]} 37. Bb1 {[%clk 0:01:13.7]} 37...
Rd1+ {[%clk 0:00:14.4]} 38. Kg2 {[%clk 0:01:13.4]} 38... Nc4 {[%clk 0:00:14.5]}
39. Ba2 {[%clk 0:01:08.7]} 39... Nd2 {[%clk 0:00:13.1]} 40. Rb2 {[%clk
0:00:58.3]} 40... Ne4 {[%clk 0:00:13.7]} 41. Bb1 {[%clk 0:00:54.4]} 41... Nc3
{[%clk 0:00:13.4]} 42. Ba2 {[%clk 0:00:47]} 42... Ra1 {[%clk 0:00:13]} 43. Bb3
{[%clk 0:00:45.9]} 43... Ra3 {[%clk 0:00:12.5]} 44. Bc2 {[%clk 0:00:45.6]} 44...
Ra1 {[%clk 0:00:09.9]} 45. Bd3 {[%clk 0:00:42.4]} 45... Nd1 {[%clk 0:00:09.4]}
46. Rd2 {[%clk 0:00:40.9]} 46... Nc3 {[%clk 0:00:08.8]} 47. Rc2 {[%clk
0:00:40.7]} 47... Ne4 {[%clk 0:00:08.1]} 48. Bxe4 {[%clk 0:00:40.5]} 48... dxe4
{[%clk 0:00:09]} 49. g4 {[%clk 0:00:40.3]} 49... Ra5 {[%clk 0:00:08.6]} 50. Kg3
{[%clk 0:00:39.7]} 50... f5 {[%clk 0:00:07.2]} 51. h4 {[%clk 0:00:38]} 51... Kf6
{[%clk 0:00:07.3]} 52. Rc8 {[%clk 0:00:36.9]} 52... g5 {[%clk 0:00:07.2]} 53.
Rf8+ {[%clk 0:00:36.5]} 53... Kg6 {[%clk 0:00:07.3]} 54. hxg5 {[%clk 0:00:31.4]}
54... hxg5 {[%clk 0:00:06.7]} 55. Re8 {[%clk 0:00:30.9]} 55... Kf7 {[%clk
0:00:06.4]} 56. Rb8 {[%clk 0:00:30.2]} 56... Ra2 {[%clk 0:00:05.7]} 57. gxf5
{[%clk 0:00:29.5]} 57... exf5 {[%clk 0:00:05.8]} 58. Rb5 {[%clk 0:00:28.9]}
58... Kf6 {[%clk 0:00:06]} 59. Rc5 {[%clk 0:00:28.3]} 59... Rd2 {[%clk
0:00:06.6]} 60. Rc6+ {[%clk 0:00:28.1]} 60... Kf7 {[%clk 0:00:06.5]} 61. f3
{[%clk 0:00:27.5]} 61... Rd3 {[%clk 0:00:06.1]} 62. Kf2 {[%clk 0:00:25.9]} 62...
exf3 {[%clk 0:00:05.6]} 63. Kxf3 {[%clk 0:00:26.1]} 63... f4 {[%clk 0:00:06.5]}
64. Rc7+ {[%clk 0:00:23.4]} 64... Kf6 {[%clk 0:00:06.2]} 65. Rc6+ {[%clk
0:00:22.9]} 65... Kf7 {[%clk 0:00:06.3]} 66. Rc7+ {[%clk 0:00:23]} 66... Kf6
{[%clk 0:00:06.7]} 67. Rc6+ {[%clk 0:00:23.2]} 67... Kf7 {[%clk 0:00:07]}
1/2-1/2

[Event "*** SCC Grand Prix: Titled Tuesday Blitz"]
[Site "Chess.com"]
[Date "2020.07.07"]
[Round "9"]
[White "Roman_Ovetchkin"]
[Black "Jospem"]
[Result "1-0"]
[WhiteElo "2587"]
[BlackElo "2861"]
[TimeControl "180+1"]
[EndTime "11:47:35 PDT"]
[Termination "Roman_Ovetchkin won by resignation"]

1. d4 {[%clk 0:03:00.9]} 1... Nf6 {[%clk 0:02:47.5]} 2. c4 {[%clk 0:03:00.7]}
2... e6 {[%clk 0:02:47]} 3. Nf3 {[%clk 0:02:59.9]} 3... Bb4+ {[%clk 0:02:47.5]}
4. Bd2 {[%clk 0:02:59.2]} 4... c5 {[%clk 0:02:47.6]} 5. Bxb4 {[%clk 0:02:56.9]}
5... cxb4 {[%clk 0:02:47.5]} 6. Qd3 {[%clk 0:02:56.7]} 6... O-O {[%clk
0:02:41.5]} 7. e4 {[%clk 0:02:56.4]} 7... d6 {[%clk 0:02:41.6]} 8. Nbd2 {[%clk
0:02:55.9]} 8... a5 {[%clk 0:02:32.9]} 9. Be2 {[%clk 0:02:56.1]} 9... b6 {[%clk
0:02:26.8]} 10. Nf1 {[%clk 0:02:46.7]} 10... Bb7 {[%clk 0:02:25.7]} 11. Ng3
{[%clk 0:02:46.6]} 11... Qc7 {[%clk 0:02:12.6]} 12. O-O {[%clk 0:02:46]} 12...
Nbd7 {[%clk 0:02:07.6]} 13. Rfe1 {[%clk 0:02:39.8]} 13... Rfe8 {[%clk
0:02:03.6]} 14. Bd1 {[%clk 0:02:36.2]} 14... e5 {[%clk 0:02:03.7]} 15. Ba4
{[%clk 0:02:26.6]} 15... Bc6 {[%clk 0:02:01.4]} 16. Bxc6 {[%clk 0:02:23.3]}
16... Qxc6 {[%clk 0:02:02.3]} 17. Rad1 {[%clk 0:02:19.4]} 17... g6 {[%clk
0:02:01.6]} 18. b3 {[%clk 0:02:06]} 18... Rab8 {[%clk 0:02:01.2]} 19. Qd2 {[%clk
0:01:49.3]} 19... b5 {[%clk 0:01:37.9]} 20. Rc1 {[%clk 0:01:26.8]} 20... Rbc8
{[%clk 0:01:31.8]} 21. d5 {[%clk 0:01:12]} 21... Qb6 {[%clk 0:01:26.9]} 22. cxb5
{[%clk 0:01:11.7]} 22... Qxb5 {[%clk 0:01:19.6]} 23. h3 {[%clk 0:01:07.1]} 23...
Rxc1 {[%clk 0:01:10.8]} 24. Rxc1 {[%clk 0:01:05]} 24... Nc5 {[%clk 0:01:11.2]}
25. Rc4 {[%clk 0:01:03]} 25... Qb6 {[%clk 0:01:06.4]} 26. h4 {[%clk 0:00:48.5]}
26... h5 {[%clk 0:01:00.6]} 27. Ne1 {[%clk 0:00:31.9]} 27... Ng4 {[%clk
0:00:50.8]} 28. Nc2 {[%clk 0:00:27.1]} 28... Qd8 {[%clk 0:00:48.2]} 29. f3
{[%clk 0:00:16.1]} 29... Nf6 {[%clk 0:00:31.7]} 30. Ne1 {[%clk 0:00:14.7]} 30...
Nfd7 {[%clk 0:00:31.1]} 31. Qh6 {[%clk 0:00:13.1]} 31... Qxh4 {[%clk 0:00:24.4]}
32. Kf2 {[%clk 0:00:13]} 32... Qf4 {[%clk 0:00:17.9]} 33. Qxf4 {[%clk 0:00:10]}
33... exf4 {[%clk 0:00:18.8]} 34. Ne2 {[%clk 0:00:10.4]} 34... g5 {[%clk
0:00:18.8]} 35. Nd4 {[%clk 0:00:09.9]} 35... Ne5 {[%clk 0:00:19.2]} 36. Rc2
{[%clk 0:00:10.1]} 36... Rc8 {[%clk 0:00:15.9]} 37. Ke2 {[%clk 0:00:09.9]} 37...
Rd8 {[%clk 0:00:09]} 38. Nf5 {[%clk 0:00:09.9]} 38... a4 {[%clk 0:00:05.7]} 39.
Nxd6 {[%clk 0:00:06.7]} 39... axb3 {[%clk 0:00:06]} 40. axb3 {[%clk 0:00:07.1]}
40... Nxb3 {[%clk 0:00:06.7]} 41. Nf5 {[%clk 0:00:07.6]} 41... g4 {[%clk
0:00:05.7]} 42. Rb2 {[%clk 0:00:07.3]} 42... Nc1+ {[%clk 0:00:02.9]} 43. Kd2
{[%clk 0:00:06.7]} 43... Nc4+ {[%clk 0:00:03.4]} 44. Kxc1 {[%clk 0:00:06.7]}
44... Nxb2 {[%clk 0:00:04.3]} 45. Kxb2 {[%clk 0:00:07.4]} 45... Kh7 {[%clk
0:00:04.9]} 46. Nd3 {[%clk 0:00:07.1]} 46... gxf3 {[%clk 0:00:04.7]} 47. gxf3
{[%clk 0:00:08]} 47... Rg8 {[%clk 0:00:04.6]} 48. Nxf4 {[%clk 0:00:08.2]} 48...
Rg2+ {[%clk 0:00:04.3]} 49. Kb3 {[%clk 0:00:08.2]} 49... Rf2 {[%clk 0:00:05.2]}
50. Nxh5 {[%clk 0:00:07.8]} 50... Rxf3+ {[%clk 0:00:05.5]} 51. Kxb4 {[%clk
0:00:08.3]} 51... Kg6 {[%clk 0:00:06.1]} 52. Nhg3 {[%clk 0:00:08.4]} 52... Kf6
{[%clk 0:00:06.8]} 53. Kc5 {[%clk 0:00:08.1]} 53... Ke5 {[%clk 0:00:07.2]} 54.
Kc6 {[%clk 0:00:07.9]} 54... Rc3+ {[%clk 0:00:07.8]} 55. Kd7 {[%clk 0:00:07.3]}
55... Ra3 {[%clk 0:00:07.6]} 56. d6 {[%clk 0:00:06.5]} 56... f6 {[%clk
0:00:06.3]} 57. Ke7 {[%clk 0:00:06.4]} 1-0

[Event "*** SCC Grand Prix: Titled Tuesday Blitz"]
[Site "Chess.com"]
[Date "2020.07.07"]
[Round "9"]
[White "Andrii_Prydun"]
[Black "Fusikk"]
[Result "0-1"]
[WhiteElo "2396"]
[BlackElo "2546"]
[TimeControl "180+1"]
[EndTime "11:47:38 PDT"]
[Termination "Fusikk won on time"]

1. d4 {[%clk 0:03:00.9]} 1... Nf6 {[%clk 0:02:59.4]} 2. Nc3 {[%clk 0:03:01.1]}
2... d5 {[%clk 0:02:59]} 3. Bf4 {[%clk 0:03:00.2]} 3... e6 {[%clk 0:02:57.8]} 4.
Nb5 {[%clk 0:02:59.3]} 4... Na6 {[%clk 0:02:56.8]} 5. e3 {[%clk 0:02:58.7]} 5...
Bd7 {[%clk 0:02:48]} 6. Nf3 {[%clk 0:02:51.8]} 6... Bb4+ {[%clk 0:02:39.3]} 7.
c3 {[%clk 0:02:48.6]} 7... Be7 {[%clk 0:02:40.2]} 8. a4 {[%clk 0:02:35.5]} 8...
O-O {[%clk 0:02:36.5]} 9. Be2 {[%clk 0:02:23.2]} 9... Ne4 {[%clk 0:02:32.2]} 10.
O-O {[%clk 0:02:21.2]} 10... c6 {[%clk 0:02:30.8]} 11. Na3 {[%clk 0:02:19.9]}
11... Nc7 {[%clk 0:02:15.3]} 12. Ne1 {[%clk 0:02:01.5]} 12... c5 {[%clk
0:02:12]} 13. Nb1 {[%clk 0:01:50.5]} 13... Ne8 {[%clk 0:02:03.9]} 14. Nd2 {[%clk
0:01:48.9]} 14... Nxd2 {[%clk 0:02:02]} 15. Qxd2 {[%clk 0:01:48.2]} 15... Nd6
{[%clk 0:01:57.4]} 16. Nd3 {[%clk 0:01:39.7]} 16... c4 {[%clk 0:01:52.7]} 17.
Ne5 {[%clk 0:01:37.4]} 17... Be8 {[%clk 0:01:47.9]} 18. Bg3 {[%clk 0:01:22.6]}
18... f6 {[%clk 0:01:40.4]} 19. Nf3 {[%clk 0:01:21.4]} 19... Ne4 {[%clk
0:01:38.5]} 20. Qc1 {[%clk 0:01:18.9]} 20... Nxg3 {[%clk 0:01:39.4]} 21. hxg3
{[%clk 0:01:17.2]} 21... Rb8 {[%clk 0:01:27.3]} 22. Nd2 {[%clk 0:01:16]} 22...
f5 {[%clk 0:01:26.7]} 23. Qc2 {[%clk 0:00:54.6]} 23... Bd6 {[%clk 0:01:16.4]}
24. b3 {[%clk 0:00:52.6]} 24... cxb3 {[%clk 0:01:13.2]} 25. Qxb3 {[%clk
0:00:53.3]} 25... Qa5 {[%clk 0:01:00.9]} 26. Rfd1 {[%clk 0:00:47.4]} 26... Bc6
{[%clk 0:00:57]} 27. c4 {[%clk 0:00:46.1]} 27... Rfc8 {[%clk 0:00:42.1]} 28. Bf3
{[%clk 0:00:43]} 28... Bb4 {[%clk 0:00:30.1]} 29. cxd5 {[%clk 0:00:20.4]} 29...
Bxd5 {[%clk 0:00:25]} 30. Bxd5 {[%clk 0:00:19.5]} 30... exd5 {[%clk 0:00:25.9]}
31. Nf3 {[%clk 0:00:19.2]} 31... Rc3 {[%clk 0:00:24.4]} 32. Qb1 {[%clk
0:00:17.8]} 32... g6 {[%clk 0:00:20.4]} 33. Ne5 {[%clk 0:00:16.8]} 33... Bd6
{[%clk 0:00:19]} 34. Nd3 {[%clk 0:00:14.5]} 34... b6 {[%clk 0:00:18.8]} 35. Qa2
{[%clk 0:00:12.6]} 35... Rbc8 {[%clk 0:00:18.8]} 36. Rac1 {[%clk 0:00:11.7]}
36... Rxc1 {[%clk 0:00:18.8]} 37. Rxc1 {[%clk 0:00:12.6]} 37... Rxc1+ {[%clk
0:00:18.9]} 38. Nxc1 {[%clk 0:00:12]} 38... Kf7 {[%clk 0:00:16.8]} 39. Nd3
{[%clk 0:00:11]} 39... Ke6 {[%clk 0:00:16.6]} 40. Qc2 {[%clk 0:00:09]} 40... Kd7
{[%clk 0:00:11.6]} 41. Qb3 {[%clk 0:00:06.9]} 41... Ke6 {[%clk 0:00:10.3]} 42.
Qc2 {[%clk 0:00:06.2]} 42... Kd7 {[%clk 0:00:10.1]} 43. Kh2 {[%clk 0:00:06]}
43... Qa6 {[%clk 0:00:09.9]} 44. Qb3 {[%clk 0:00:05.7]} 44... Qc4 {[%clk
0:00:09.8]} 45. Qd1 {[%clk 0:00:04.1]} 45... a6 {[%clk 0:00:09.2]} 46. Kg1
{[%clk 0:00:03.4]} 46... b5 {[%clk 0:00:09.3]} 47. axb5 {[%clk 0:00:03.9]} 47...
axb5 {[%clk 0:00:10.2]} 48. g4 {[%clk 0:00:04.3]} 48... b4 {[%clk 0:00:09.3]}
49. gxf5 {[%clk 0:00:04.5]} 49... gxf5 {[%clk 0:00:10.2]} 50. Nc1 {[%clk
0:00:04.6]} 50... f4 {[%clk 0:00:08.8]} 51. exf4 {[%clk 0:00:03.6]} 51... Kc6
{[%clk 0:00:07.7]} 52. Nb3 {[%clk 0:00:03.5]} 52... Bxf4 {[%clk 0:00:07.6]} 53.
Qf3 {[%clk 0:00:03.7]} 53... Kb5 {[%clk 0:00:06.4]} 54. Qxf4 {[%clk 0:00:03]}
54... Qxb3 {[%clk 0:00:06.7]} 55. Qe5 {[%clk 0:00:02.6]} 55... Qd1+ {[%clk
0:00:06.6]} 56. Kh2 {[%clk 0:00:02.6]} 56... Kc4 {[%clk 0:00:06.8]} 57. Qg7
{[%clk 0:00:01.9]} 57... Qxd4 {[%clk 0:00:06.4]} 58. Qxh7 {[%clk 0:00:01.8]}
58... Qf4+ {[%clk 0:00:06.5]} 59. Kg1 {[%clk 0:00:01.3]} 59... b3 {[%clk
0:00:07.4]} 0-1

[Event "*** SCC Grand Prix: Titled Tuesday Blitz"]
[Site "Chess.com"]
[Date "2020.07.07"]
[Round "9"]
[White "JozefKneht"]
[Black "Gloomy_Wanderer"]
[Result "1-0"]
[WhiteElo "2512"]
[BlackElo "2746"]
[TimeControl "180+1"]
[EndTime "11:47:39 PDT"]
[Termination "JozefKneht won on time"]

1. e4 {[%clk 0:03:00.9]} 1... c5 {[%clk 0:02:58.6]} 2. Nf3 {[%clk 0:02:59.4]}
2... a6 {[%clk 0:02:58.7]} 3. c4 {[%clk 0:02:58.8]} 3... Nc6 {[%clk 0:02:58.6]}
4. d4 {[%clk 0:02:58.7]} 4... cxd4 {[%clk 0:02:58.7]} 5. Nxd4 {[%clk 0:02:59]}
5... e5 {[%clk 0:02:59.4]} 6. Nc2 {[%clk 0:02:56]} 6... Bc5 {[%clk 0:02:58.9]}
7. Be2 {[%clk 0:02:52.7]} 7... Nf6 {[%clk 0:02:58.2]} 8. O-O {[%clk 0:02:52.3]}
8... Nxe4 {[%clk 0:02:27.4]} 9. Qd5 {[%clk 0:02:49.1]} 9... Qh4 {[%clk
0:02:26.7]} 10. Be3 {[%clk 0:02:29.4]} 10... Bxe3 {[%clk 0:02:19]} 11. Nxe3
{[%clk 0:02:29.7]} 11... Nf6 {[%clk 0:02:18.4]} 12. Qd6 {[%clk 0:02:29.1]} 12...
Qd4 {[%clk 0:01:48.2]} 13. Qa3 {[%clk 0:02:26.7]} 13... d6 {[%clk 0:01:38.4]}
14. Rd1 {[%clk 0:02:25.7]} 14... Qc5 {[%clk 0:01:38.7]} 15. b4 {[%clk
0:02:09.1]} 15... Qxb4 {[%clk 0:01:36.7]} 16. Rxd6 {[%clk 0:02:07.6]} 16... Qxa3
{[%clk 0:01:35.2]} 17. Nxa3 {[%clk 0:02:07.8]} 17... Nd4 {[%clk 0:01:35.7]} 18.
Bf1 {[%clk 0:02:02.3]} 18... Ke7 {[%clk 0:01:34.9]} 19. Rb6 {[%clk 0:02:00.3]}
19... Rd8 {[%clk 0:01:28.2]} 20. Rab1 {[%clk 0:02:00]} 20... Ne6 {[%clk
0:01:18.7]} 21. Nf5+ {[%clk 0:01:52.5]} 21... Kf8 {[%clk 0:01:18.9]} 22. Nd6
{[%clk 0:01:51]} 22... Nc5 {[%clk 0:01:17.3]} 23. g3 {[%clk 0:01:41.9]} 23...
Ke7 {[%clk 0:01:16.9]} 24. Nxc8+ {[%clk 0:01:38.9]} 24... Raxc8 {[%clk
0:01:17.4]} 25. Bg2 {[%clk 0:01:39.3]} 25... e4 {[%clk 0:01:17.9]} 26. Nc2
{[%clk 0:01:38.7]} 26... Rd2 {[%clk 0:01:15]} 27. Nb4 {[%clk 0:01:37.3]} 27...
Rd6 {[%clk 0:01:08.5]} 28. Rxd6 {[%clk 0:01:32.8]} 28... Kxd6 {[%clk 0:01:09.4]}
29. Rd1+ {[%clk 0:01:32.6]} 29... Ke5 {[%clk 0:00:49.5]} 30. h3 {[%clk
0:01:31.6]} 30... a5 {[%clk 0:00:45.8]} 31. Nd5 {[%clk 0:01:19.5]} 31... Nd3
{[%clk 0:00:37.1]} 32. Ne3 {[%clk 0:01:13.6]} 32... Nd7 {[%clk 0:00:32.3]} 33.
f4+ {[%clk 0:01:02.4]} 33... Kd4 {[%clk 0:00:16.2]} 34. Nf5+ {[%clk 0:01:02.4]}
34... Kc3 {[%clk 0:00:16.7]} 35. Bxe4 {[%clk 0:01:00]} 35... N7c5 {[%clk
0:00:17.1]} 36. Bf3 {[%clk 0:00:56.8]} 36... Rd8 {[%clk 0:00:09.2]} 37. Nxg7
{[%clk 0:00:54.1]} 37... Kxc4 {[%clk 0:00:09.2]} 38. Nh5 {[%clk 0:00:53.4]}
38... b5 {[%clk 0:00:09]} 39. Nf6 {[%clk 0:00:53.5]} 39... b4 {[%clk 0:00:09.4]}
40. Nxh7 {[%clk 0:00:53.1]} 40... a4 {[%clk 0:00:08.8]} 41. Ng5 {[%clk
0:00:53.5]} 41... b3 {[%clk 0:00:08.9]} 42. axb3+ {[%clk 0:00:53.5]} 42... axb3
{[%clk 0:00:09.8]} 43. Nxf7 {[%clk 0:00:52.2]} 43... Rd4 {[%clk 0:00:10.5]} 44.
Be2 {[%clk 0:00:47.3]} 44... b2 {[%clk 0:00:10.4]} 45. Ne5+ {[%clk 0:00:41.7]}
45... Kc3 {[%clk 0:00:09.8]} 46. Nxd3 {[%clk 0:00:42]} 46... Nxd3 {[%clk
0:00:10.2]} 47. Rb1 {[%clk 0:00:36.2]} 47... Nc1 {[%clk 0:00:10]} 48. Bh5 {[%clk
0:00:32.5]} 48... Kc2 {[%clk 0:00:07.6]} 49. Bg6+ {[%clk 0:00:32.1]} 49... Nd3
{[%clk 0:00:08.3]} 50. Rxb2+ {[%clk 0:00:27.2]} 50... Kxb2 {[%clk 0:00:09.2]}
51. Kg2 {[%clk 0:00:27.2]} 51... Kc3 {[%clk 0:00:07.5]} 52. h4 {[%clk
0:00:27.3]} 52... Nc5 {[%clk 0:00:06.1]} 53. h5 {[%clk 0:00:26.6]} 53... Rd6
{[%clk 0:00:06.4]} 54. Kf3 {[%clk 0:00:25.7]} 54... Kd4 {[%clk 0:00:06.3]} 55.
g4 {[%clk 0:00:24.9]} 55... Ne6 {[%clk 0:00:05.6]} 56. g5 {[%clk 0:00:24.5]}
56... Nf8 {[%clk 0:00:04.9]} 57. Bf5 {[%clk 0:00:24.2]} 57... Kd5 {[%clk
0:00:02]} 58. g6 {[%clk 0:00:21.9]} 58... Rf6 {[%clk 0:00:01.5]} 59. Kg4 {[%clk
0:00:21.1]} 59... Ne6 {[%clk 0:00:01.1]} 60. h6 {[%clk 0:00:18.5]} 60... Kd6
{[%clk 0:00:01.4]} 61. g7 {[%clk 0:00:17]} 1-0

[Event "*** SCC Grand Prix: Titled Tuesday Blitz"]
[Site "Chess.com"]
[Date "2020.07.07"]
[Round "9"]
[White "ElviraBerend"]
[Black "Khazieva_Elza"]
[Result "1-0"]
[WhiteElo "2431"]
[BlackElo "2275"]
[TimeControl "180+1"]
[EndTime "11:47:43 PDT"]
[Termination "ElviraBerend won on time"]

1. d4 {[%clk 0:03:00.9]} 1... Nf6 {[%clk 0:03:00]} 2. c4 {[%clk 0:02:59.3]} 2...
d6 {[%clk 0:03:00.4]} 3. Nf3 {[%clk 0:02:58.3]} 3... Bf5 {[%clk 0:03:00.8]} 4.
Nc3 {[%clk 0:02:57.4]} 4... c6 {[%clk 0:03:00.6]} 5. g3 {[%clk 0:02:56.8]} 5...
h6 {[%clk 0:03:00.8]} 6. Bg2 {[%clk 0:02:56.9]} 6... Nbd7 {[%clk 0:03:01.1]} 7.
O-O {[%clk 0:02:56.9]} 7... e5 {[%clk 0:03:01.4]} 8. d5 {[%clk 0:02:51.6]} 8...
Qc7 {[%clk 0:01:42.3]} 9. Nh4 {[%clk 0:02:47.7]} 9... Bh7 {[%clk 0:01:42.3]} 10.
e4 {[%clk 0:02:47.1]} 10... Be7 {[%clk 0:01:38.2]} 11. Nf5 {[%clk 0:02:43.9]}
11... Bxf5 {[%clk 0:01:36.8]} 12. exf5 {[%clk 0:02:44.1]} 12... O-O {[%clk
0:01:34.6]} 13. Be3 {[%clk 0:02:40.3]} 13... Nh7 {[%clk 0:01:21]} 14. Rc1 {[%clk
0:02:36]} 14... Bg5 {[%clk 0:01:16]} 15. dxc6 {[%clk 0:02:25.5]} 15... bxc6
{[%clk 0:01:15.3]} 16. Bxg5 {[%clk 0:02:20.7]} 16... Nxg5 {[%clk 0:01:09]} 17.
h4 {[%clk 0:02:19.6]} 17... Nh7 {[%clk 0:01:07.1]} 18. Ne4 {[%clk 0:02:19.6]}
18... Rab8 {[%clk 0:00:51.5]} 19. b3 {[%clk 0:02:13.8]} 19... Nhf6 {[%clk
0:00:39.4]} 20. Nxd6 {[%clk 0:02:08.3]} 20... Nc5 {[%clk 0:00:35.5]} 21. Re1
{[%clk 0:01:42.1]} 21... Rfd8 {[%clk 0:00:30.8]} 22. Rxe5 {[%clk 0:01:40.6]}
22... Rxd6 {[%clk 0:00:28.5]} 23. Qe2 {[%clk 0:01:38.7]} 23... Nd3 {[%clk
0:00:23.8]} 24. Rf1 {[%clk 0:01:26.7]} 24... Nxe5 {[%clk 0:00:23.5]} 25. Qxe5
{[%clk 0:01:26.9]} 25... Re8 {[%clk 0:00:23.5]} 26. Qc5 {[%clk 0:01:25.9]} 26...
Ne4 {[%clk 0:00:19.8]} 27. Qe3 {[%clk 0:01:22.8]} 27... Nf6 {[%clk 0:00:17.2]}
28. Qc3 {[%clk 0:01:19.2]} 28... Qd7 {[%clk 0:00:14.8]} 29. Qf3 {[%clk
0:01:12.1]} 29... c5 {[%clk 0:00:13.2]} 30. Qc3 {[%clk 0:00:50.2]} 30... Rd4
{[%clk 0:00:12.8]} 31. Qa5 {[%clk 0:00:49.1]} 31... Qxf5 {[%clk 0:00:11.9]} 32.
Qxa7 {[%clk 0:00:47.7]} 32... Rd2 {[%clk 0:00:10.8]} 33. Qa4 {[%clk 0:00:44.9]}
33... Ree2 {[%clk 0:00:09.9]} 34. Qa8+ {[%clk 0:00:43]} 34... Kh7 {[%clk
0:00:10.1]} 35. Bf3 {[%clk 0:00:40.4]} 35... Re8 {[%clk 0:00:06]} 36. Qb7 {[%clk
0:00:38.7]} 36... Rd7 {[%clk 0:00:05.9]} 37. Qc6 {[%clk 0:00:37.7]} 37... Re6
{[%clk 0:00:05.1]} 38. Qa8 {[%clk 0:00:37.4]} 38... Rde7 {[%clk 0:00:04.2]} 39.
Kg2 {[%clk 0:00:36]} 39... g6 {[%clk 0:00:04.3]} 40. Qf8 {[%clk 0:00:28.5]}
40... Nd7 {[%clk 0:00:02.4]} 41. Qc8 {[%clk 0:00:25.8]} 41... Kg7 {[%clk
0:00:02.7]} 42. Rd1 {[%clk 0:00:22.4]} 42... Ne5 {[%clk 0:00:02.7]} 43. Bd5
{[%clk 0:00:21.3]} 43... Ng4 {[%clk 0:00:01.8]} 44. Bf3 {[%clk 0:00:15.1]} 44...
Rf6 {[%clk 0:00:02.2]} 45. Qxf5 {[%clk 0:00:13.5]} 45... Rxf5 {[%clk 0:00:03.1]}
46. Bxg4 {[%clk 0:00:13.2]} 46... Rfe5 {[%clk 0:00:03.5]} 47. a4 {[%clk
0:00:08.9]} 47... Ra7 {[%clk 0:00:03.1]} 48. Ra1 {[%clk 0:00:08.3]} 48... Rb7
{[%clk 0:00:03.2]} 49. a5 {[%clk 0:00:08]} 49... Rxb3 {[%clk 0:00:03.2]} 50. a6
{[%clk 0:00:08.4]} 50... Re8 {[%clk 0:00:03.2]} 51. a7 {[%clk 0:00:08.6]} 51...
Ra8 {[%clk 0:00:03.4]} 52. Bf3 {[%clk 0:00:08.9]} 52... Rxf3 {[%clk 0:00:03.3]}
53. Kxf3 {[%clk 0:00:09.3]} 53... Kf6 {[%clk 0:00:04.2]} 54. Ke4 {[%clk
0:00:09.7]} 54... Ke6 {[%clk 0:00:04.7]} 55. Ra6+ {[%clk 0:00:10.2]} 55... Kd7
{[%clk 0:00:05.1]} 56. Kd5 {[%clk 0:00:10.5]} 56... Kc7 {[%clk 0:00:05.5]} 57.
Kxc5 {[%clk 0:00:11]} 57... Kb7 {[%clk 0:00:05.9]} 58. Kb5 {[%clk 0:00:11.4]}
58... Rxa7 {[%clk 0:00:05.7]} 59. Rxa7+ {[%clk 0:00:11.4]} 59... Kxa7 {[%clk
0:00:06]} 60. Kc6 {[%clk 0:00:11.9]} 60... Kb8 {[%clk 0:00:06.2]} 61. Kd7 {[%clk
0:00:12]} 1-0